[Event "Titled Tuesday Blitz February 22 Early 2022"]
[White "Ianov, Viktor"]
[Black "Krylov, Ivan"]
[WhiteFideId "14102730"]
[BlackFideId "24128066"]
[WhiteElo "2215"]
[BlackElo "2258"]
[Result "0-1"]
[Round "09"]
[TimeControl "180+1"]
[Date "2022.02.22"]
[WhiteClock "0:02:00"]
[BlackClock "0:00:54"]

1. Nf3 {[%clk 0:03:00]}  d5 {[%clk 0:02:39]} 2. g3 {[%clk 0:03:00]}  Nf6 {[%clk 0:02:39]} 3. Bg2 {[%clk 0:03:00]}  e6 {[%clk 0:02:38]} 4. O-O {[%clk 0:03:00]}  Be7 {[%clk 0:02:39]} 5. d4 {[%clk 0:03:00]}  O-O {[%clk 0:02:39]} 6. b3 {[%clk 0:03:00]}  b5 {[%clk 0:02:39]} 7. c4 {[%clk 0:03:00]}  bxc4 {[%clk 0:02:38]} 8. bxc4 {[%clk 0:03:00]}  Bb7 {[%clk 0:02:38]} 9. Ne5 {[%clk 0:02:59]}  Nbd7 {[%clk 0:02:36]} 10. Nc3 {[%clk 0:02:57]}  c6 {[%clk 0:02:32]} 11. Rb1 {[%clk 0:02:56]}  Rb8 {[%clk 0:02:29]} 12. Bf4 {[%clk 0:02:54]}  Nxe5 {[%clk 0:02:12]} 13. Bxe5 {[%clk 0:02:50]}  Bd6 {[%clk 0:02:12]} 14. Bxd6 {[%clk 0:02:48]}  Qxd6 {[%clk 0:02:12]} 15. e4 {[%clk 0:02:42]}  dxe4 {[%clk 0:02:10]} 16. Nxe4 {[%clk 0:02:42]}  Nxe4 {[%clk 0:02:03]} 17. Bxe4 {[%clk 0:02:42]}  Ba6 {[%clk 0:02:02]} 18. Qa4 {[%clk 0:02:34]}  Qxd4 {[%clk 0:01:49]} 19. Bxh7+ {[%clk 0:02:33]}  Kxh7 {[%clk 0:01:47]} 20. Qxa6 {[%clk 0:02:33]}  Rxb1 {[%clk 0:01:37]} 21. Rxb1 {[%clk 0:02:32]}  c5 {[%clk 0:01:34]} 22. Rb7 {[%clk 0:02:17]}  Kg6 {[%clk 0:01:28]} 23. Rxa7 {[%clk 0:02:12]}  Rd8 {[%clk 0:01:27]} 24. Qb7 {[%clk 0:02:10]}  Qf6 {[%clk 0:01:09]} 25. Qe4+ {[%clk 0:02:07]}  Kh6 {[%clk 0:01:03]} 26. Qe3+ {[%clk 0:02:02]}  Kg6 {[%clk 0:01:01]} 27. Qxc5 {[%clk 0:02:00]}  Qf3 {[%clk 0:00:54]} 0-1


[Site "https://www.chess.com"]

[Event "Titled Tuesday Blitz February 22 Early 2022"]
[White "Ishbaev, Alibek"]
[Black "Budrewicz, Krzysztof"]
[WhiteFideId "14205017"]
[BlackFideId "1127950"]
[WhiteElo "2387"]
[BlackElo "2248"]
[Result "0-1"]
[Round "09"]
[TimeControl "180+1"]
[Date "2022.02.22"]
[WhiteClock "0:00:10"]
[BlackClock "0:00:04"]

1. c4 {[%clk 0:03:00]}  b5 {[%clk 0:02:49]} 2. d3 {[%clk 0:02:59]}  Bb7 {[%clk 0:02:44]} 3. cxb5 {[%clk 0:02:52]}  d5 {[%clk 0:02:44]} 4. g3 {[%clk 0:02:50]}  e5 {[%clk 0:02:42]} 5. Bg2 {[%clk 0:02:50]}  Nf6 {[%clk 0:02:42]} 6. Nc3 {[%clk 0:02:49]}  Be7 {[%clk 0:02:41]} 7. Bg5 {[%clk 0:02:49]}  Nbd7 {[%clk 0:02:39]} 8. Nf3 {[%clk 0:02:48]}  d4 {[%clk 0:02:36]} 9. Na4 {[%clk 0:02:43]}  Bb4+ {[%clk 0:02:31]} 10. Bd2 {[%clk 0:02:40]}  Qe7 {[%clk 0:02:31]} 11. O-O {[%clk 0:02:36]}  Bd6 {[%clk 0:02:29]} 12. a3 {[%clk 0:02:30]}  O-O {[%clk 0:02:28]} 13. b4 {[%clk 0:02:27]}  Rfe8 {[%clk 0:02:22]} 14. Bg5 {[%clk 0:02:17]}  h6 {[%clk 0:02:22]} 15. Bxf6 {[%clk 0:02:17]}  Qxf6 {[%clk 0:02:21]} 16. Nd2 {[%clk 0:02:14]}  Bxg2 {[%clk 0:02:19]} 17. Kxg2 {[%clk 0:02:15]}  Qg6 {[%clk 0:02:19]} 18. Ne4 {[%clk 0:02:11]}  f5 {[%clk 0:02:19]} 19. Nxd6 {[%clk 0:02:10]}  cxd6 {[%clk 0:02:18]} 20. Rc1 {[%clk 0:02:09]}  f4 {[%clk 0:02:17]} 21. Rc7 {[%clk 0:02:06]}  Nf6 {[%clk 0:02:16]} 22. Qb3+ {[%clk 0:02:04]}  Kh7 {[%clk 0:02:12]} 23. Qf7 {[%clk 0:02:04]}  Qg5 {[%clk 0:02:05]} 24. h4 {[%clk 0:02:03]}  Qg6 {[%clk 0:01:57]} 25. Qxg6+ {[%clk 0:01:58]}  Kxg6 {[%clk 0:01:58]} 26. Rfc1 {[%clk 0:01:53]}  fxg3 {[%clk 0:01:55]} 27. fxg3 {[%clk 0:01:52]}  Ng4 {[%clk 0:01:47]} 28. R1c6 {[%clk 0:01:50]}  Re6 {[%clk 0:01:47]} 29. Rd7 {[%clk 0:01:46]}  Ne3+ {[%clk 0:01:44]} 30. Kf3 {[%clk 0:01:40]}  Rf8+ {[%clk 0:01:40]} 31. Ke4 {[%clk 0:01:40]}  Rff6 {[%clk 0:01:29]} 32. Nb2 {[%clk 0:01:00]}  Nf5 {[%clk 0:00:38]} 33. Kd5 {[%clk 0:00:46]}  Kh5 {[%clk 0:00:28]} 34. Nc4 {[%clk 0:00:39]}  Ne7+ {[%clk 0:00:20]} 35. Rxe7 {[%clk 0:00:39]}  Rxe7 {[%clk 0:00:20]} 36. Rxd6 {[%clk 0:00:38]}  Kg4 {[%clk 0:00:19]} 37. Nxe5+ {[%clk 0:00:35]}  Kxg3 {[%clk 0:00:16]} 38. Rxf6 {[%clk 0:00:31]}  gxf6 {[%clk 0:00:17]} 39. Nf3 {[%clk 0:00:32]}  Rxe2 {[%clk 0:00:15]} 40. Nxd4 {[%clk 0:00:32]}  Re8 {[%clk 0:00:14]} 41. Nf5+ {[%clk 0:00:31]}  Kg4 {[%clk 0:00:14]} 42. Nxh6+ {[%clk 0:00:31]}  Kxh4 {[%clk 0:00:14]} 43. Nf5+ {[%clk 0:00:27]}  Kg5 {[%clk 0:00:14]} 44. Ng7 {[%clk 0:00:27]}  Rd8+ {[%clk 0:00:13]} 45. Ke4 {[%clk 0:00:26]}  f5+ {[%clk 0:00:13]} 46. Nxf5 {[%clk 0:00:25]}  Re8+ {[%clk 0:00:13]} 47. Kd5 {[%clk 0:00:23]}  Kxf5 {[%clk 0:00:13]} 48. Kc6 {[%clk 0:00:19]}  Ke6 {[%clk 0:00:13]} 49. d4 {[%clk 0:00:16]}  Rd8 {[%clk 0:00:12]} 50. a4 {[%clk 0:00:12]}  Rxd4 {[%clk 0:00:12]} 51. a5 {[%clk 0:00:12]}  Rxb4 {[%clk 0:00:07]} 52. b6 {[%clk 0:00:12]}  axb6 {[%clk 0:00:06]} 53. axb6 {[%clk 0:00:13]}  Rc4+ {[%clk 0:00:06]} 54. Kb7 {[%clk 0:00:13]}  Kd7 {[%clk 0:00:06]} 55. Kb8 {[%clk 0:00:12]}  Kc6 {[%clk 0:00:06]} 56. b7 {[%clk 0:00:11]}  Rb4 {[%clk 0:00:05]} 57. Ka8 {[%clk 0:00:12]}  Kc7 {[%clk 0:00:04]} 58. Ka7 {[%clk 0:00:10]}  Ra4# {[%clk 0:00:04]} 0-1


[Site "https://www.chess.com"]

[Event "Titled Tuesday Blitz February 22 Early 2022"]
[White "Jobava, Baadur"]
[Black "Priasmoro, Novendra"]
[WhiteFideId "13601520"]
[BlackFideId "7105029"]
[WhiteElo "2617"]
[BlackElo "2309"]
[Result "1-0"]
[Round "09"]
[TimeControl "180+1"]
[Date "2022.02.22"]
[WhiteClock "0:01:09"]
[BlackClock "0:00:34"]

1. e4 {[%clk 0:03:00]}  d5 {[%clk 0:02:47]} 2. exd5 {[%clk 0:03:00]}  Qxd5 {[%clk 0:02:48]} 3. Nc3 {[%clk 0:03:01]}  Qa5 {[%clk 0:02:47]} 4. d4 {[%clk 0:02:59]}  Nf6 {[%clk 0:02:48]} 5. Bd3 {[%clk 0:02:59]}  c6 {[%clk 0:02:47]} 6. Nf3 {[%clk 0:02:58]}  Bg4 {[%clk 0:02:46]} 7. h3 {[%clk 0:02:58]}  Bh5 {[%clk 0:02:44]} 8. g4 {[%clk 0:02:57]}  Bg6 {[%clk 0:02:44]} 9. Ne5 {[%clk 0:02:57]}  e6 {[%clk 0:02:41]} 10. Nxg6 {[%clk 0:02:43]}  hxg6 {[%clk 0:02:41]} 11. Bd2 {[%clk 0:02:42]}  Qc7 {[%clk 0:02:39]} 12. Qf3 {[%clk 0:02:39]}  Nbd7 {[%clk 0:02:38]} 13. O-O-O {[%clk 0:02:39]}  Bd6 {[%clk 0:02:38]} 14. Kb1 {[%clk 0:02:38]}  O-O-O {[%clk 0:02:38]} 15. g5 {[%clk 0:02:36]}  Nd5 {[%clk 0:02:30]} 16. Qxf7 {[%clk 0:02:27]}  Nf8 {[%clk 0:02:16]} 17. Qxc7+ {[%clk 0:02:26]}  Bxc7 {[%clk 0:02:17]} 18. Ne2 {[%clk 0:02:18]}  Rh4 {[%clk 0:02:01]} 19. c3 {[%clk 0:02:01]}  e5 {[%clk 0:01:53]} 20. dxe5 {[%clk 0:01:55]}  Bxe5 {[%clk 0:01:54]} 21. Kc2 {[%clk 0:01:53]}  Kc7 {[%clk 0:01:41]} 22. Rdg1 {[%clk 0:01:46]}  Ra4 {[%clk 0:01:26]} 23. a3 {[%clk 0:01:42]}  Ne7 {[%clk 0:01:16]} 24. Rg4 {[%clk 0:01:41]}  Rxg4 {[%clk 0:01:08]} 25. hxg4 {[%clk 0:01:42]}  Ne6 {[%clk 0:01:09]} 26. Re1 {[%clk 0:01:24]}  Nc5 {[%clk 0:01:08]} 27. Nc1 {[%clk 0:01:23]}  Bd6 {[%clk 0:01:04]} 28. c4 {[%clk 0:01:17]}  Rf8 {[%clk 0:01:04]} 29. b4 {[%clk 0:01:16]}  Nxd3 {[%clk 0:01:04]} 30. Nxd3 {[%clk 0:01:16]}  Nc8 {[%clk 0:00:55]} 31. Re6 {[%clk 0:01:16]}  Rf7 {[%clk 0:00:33]} 32. Rxg6 {[%clk 0:01:12]}  Kd7 {[%clk 0:00:34]} 33. Bc3 {[%clk 0:01:09]} 1-0


[Site "https://www.chess.com"]

[Event "Titled Tuesday Blitz February 22 Early 2022"]
[White "Kamsky, Gata"]
[Black "Martirosyan, Haik M."]
[WhiteFideId "2000024"]
[BlackFideId "13306553"]
[WhiteElo "2645"]
[BlackElo "2735"]
[Result "0-1"]
[Round "09"]
[TimeControl "180+1"]
[Date "2022.02.22"]
[WhiteClock "0:00:02"]
[BlackClock "0:00:07"]

1. d4 {[%clk 0:03:00]}  Nf6 {[%clk 0:02:58]} 2. Nf3 {[%clk 0:02:58]}  d5 {[%clk 0:02:55]} 3. Bf4 {[%clk 0:02:57]}  c5 {[%clk 0:02:54]} 4. e3 {[%clk 0:02:56]}  Nc6 {[%clk 0:02:54]} 5. Nbd2 {[%clk 0:02:55]}  cxd4 {[%clk 0:02:53]} 6. exd4 {[%clk 0:02:55]}  Bf5 {[%clk 0:02:53]} 7. c3 {[%clk 0:02:53]}  e6 {[%clk 0:02:52]} 8. Bb5 {[%clk 0:02:52]}  Bd6 {[%clk 0:02:46]} 9. Bxd6 {[%clk 0:02:46]}  Qxd6 {[%clk 0:02:46]} 10. O-O {[%clk 0:02:46]}  O-O {[%clk 0:02:46]} 11. Re1 {[%clk 0:02:45]}  a6 {[%clk 0:02:39]} 12. Bf1 {[%clk 0:02:36]}  Qc7 {[%clk 0:02:35]} 13. a4 {[%clk 0:02:34]}  h6 {[%clk 0:02:32]} 14. Qb3 {[%clk 0:02:26]}  Rab8 {[%clk 0:02:27]} 15. Qa3 {[%clk 0:02:25]}  Rfe8 {[%clk 0:02:22]} 16. a5 {[%clk 0:02:17]}  Ne4 {[%clk 0:02:07]} 17. Nxe4 {[%clk 0:02:16]}  Bxe4 {[%clk 0:02:06]} 18. Nd2 {[%clk 0:02:15]}  Bg6 {[%clk 0:02:04]} 19. Qc5 {[%clk 0:02:12]}  Rbc8 {[%clk 0:01:54]} 20. Nb3 {[%clk 0:01:55]}  Bc2 {[%clk 0:01:49]} 21. Nc1 {[%clk 0:01:33]}  Qd8 {[%clk 0:01:41]} 22. Bd3 {[%clk 0:01:08]}  Bxd3 {[%clk 0:01:24]} 23. Nxd3 {[%clk 0:01:08]}  Ne5 {[%clk 0:01:20]} 24. Rxe5 {[%clk 0:01:08]}  Rxc5 {[%clk 0:01:18]} 25. Nxc5 {[%clk 0:01:08]}  Qc7 {[%clk 0:01:12]} 26. g3 {[%clk 0:00:55]}  Qc6 {[%clk 0:01:07]} 27. Rae1 {[%clk 0:00:51]}  Qb5 {[%clk 0:01:06]} 28. b4 {[%clk 0:00:50]}  g6 {[%clk 0:00:57]} 29. h4 {[%clk 0:00:48]}  h5 {[%clk 0:00:57]} 30. R5e3 {[%clk 0:00:47]}  Rc8 {[%clk 0:00:52]} 31. Ra1 {[%clk 0:00:46]}  Kg7 {[%clk 0:00:50]} 32. Kg2 {[%clk 0:00:46]}  Re8 {[%clk 0:00:48]} 33. Kg1 {[%clk 0:00:44]}  Qc4 {[%clk 0:00:48]} 34. Rae1 {[%clk 0:00:43]}  Re7 {[%clk 0:00:47]} 35. Kg2 {[%clk 0:00:40]}  Kf8 {[%clk 0:00:37]} 36. Kg1 {[%clk 0:00:39]}  Ke8 {[%clk 0:00:38]} 37. Kg2 {[%clk 0:00:35]}  Kd8 {[%clk 0:00:38]} 38. Kg1 {[%clk 0:00:35]}  Kc8 {[%clk 0:00:37]} 39. Kg2 {[%clk 0:00:35]}  Kb8 {[%clk 0:00:36]} 40. Kg1 {[%clk 0:00:36]}  Ka7 {[%clk 0:00:36]} 41. Kg2 {[%clk 0:00:36]}  Rc7 {[%clk 0:00:35]} 42. Kg1 {[%clk 0:00:36]}  Rc6 {[%clk 0:00:34]} 43. Rf3 {[%clk 0:00:35]}  Rc7 {[%clk 0:00:34]} 44. Rfe3 {[%clk 0:00:35]}  Qa2 {[%clk 0:00:34]} 45. Kg2 {[%clk 0:00:35]}  Qc2 {[%clk 0:00:34]} 46. R1e2 {[%clk 0:00:34]}  Qf5 {[%clk 0:00:26]} 47. Rf3 {[%clk 0:00:32]}  Qb1 {[%clk 0:00:26]} 48. Rfe3 {[%clk 0:00:32]}  Qa1 {[%clk 0:00:27]} 49. Re1 {[%clk 0:00:32]}  Qa2 {[%clk 0:00:27]} 50. R1e2 {[%clk 0:00:32]}  Qc4 {[%clk 0:00:28]} 51. Re1 {[%clk 0:00:33]}  Re7 {[%clk 0:00:27]} 52. Kg1 {[%clk 0:00:33]}  Kb8 {[%clk 0:00:28]} 53. Kg2 {[%clk 0:00:33]}  Kc8 {[%clk 0:00:27]} 54. Kg1 {[%clk 0:00:33]}  e5 {[%clk 0:00:25]} 55. dxe5 {[%clk 0:00:31]}  d4 {[%clk 0:00:26]} 56. Ne4 {[%clk 0:00:20]}  Kb8 {[%clk 0:00:17]} 57. Nd6 {[%clk 0:00:20]}  Qd5 {[%clk 0:00:17]} 58. cxd4 {[%clk 0:00:20]}  Qxd4 {[%clk 0:00:17]} 59. Re4 {[%clk 0:00:20]}  Qd2 {[%clk 0:00:16]} 60. Nc4 {[%clk 0:00:20]}  Qxb4 {[%clk 0:00:16]} 61. Rd1 {[%clk 0:00:19]}  Rc7 {[%clk 0:00:15]} 62. Rd8+ {[%clk 0:00:19]}  Ka7 {[%clk 0:00:14]} 63. Nd6 {[%clk 0:00:19]}  Qxa5 {[%clk 0:00:08]} 64. Nc8+ {[%clk 0:00:16]}  Kb8 {[%clk 0:00:09]} 65. Nb6+ {[%clk 0:00:16]}  Ka7 {[%clk 0:00:08]} 66. Nc8+ {[%clk 0:00:17]}  Rxc8 {[%clk 0:00:09]} 67. Rxc8 {[%clk 0:00:16]}  Qd5 {[%clk 0:00:09]} 68. Rf4 {[%clk 0:00:16]}  a5 {[%clk 0:00:07]} 69. Rc7 {[%clk 0:00:16]}  Qxe5 {[%clk 0:00:07]} 70. Rfxf7 {[%clk 0:00:16]}  Qe1+ {[%clk 0:00:07]} 71. Kg2 {[%clk 0:00:15]}  Qe4+ {[%clk 0:00:08]} 72. Kg1 {[%clk 0:00:16]}  a4 {[%clk 0:00:09]} 73. Rf4 {[%clk 0:00:15]}  Qe1+ {[%clk 0:00:08]} 74. Kg2 {[%clk 0:00:15]}  Qd1 {[%clk 0:00:08]} 75. Rb4 {[%clk 0:00:14]}  Ka6 {[%clk 0:00:07]} 76. Rc8 {[%clk 0:00:11]}  Qd5+ {[%clk 0:00:07]} 77. Kh2 {[%clk 0:00:10]}  b5 {[%clk 0:00:08]} 78. Rb8 {[%clk 0:00:08]}  Qc5 {[%clk 0:00:07]} 79. Rf4 {[%clk 0:00:08]}  Ka5 {[%clk 0:00:06]} 80. Ra8+ {[%clk 0:00:08]}  Kb6 {[%clk 0:00:07]} 81. Rf6+ {[%clk 0:00:08]}  Kb7 {[%clk 0:00:07]} 82. Re8 {[%clk 0:00:08]}  a3 {[%clk 0:00:05]} 83. Rf7+ {[%clk 0:00:08]}  Kb6 {[%clk 0:00:06]} 84. Re6+ {[%clk 0:00:08]}  Ka5 {[%clk 0:00:06]} 85. Re8 {[%clk 0:00:07]}  b4 {[%clk 0:00:07]} 86. Ra8+ {[%clk 0:00:06]}  Kb5 {[%clk 0:00:07]} 87. Rf3 {[%clk 0:00:04]}  Qd5 {[%clk 0:00:06]} 88. Rb8+ {[%clk 0:00:04]}  Ka4 {[%clk 0:00:06]} 89. Rf4 {[%clk 0:00:04]}  Qd2 {[%clk 0:00:06]} 90. Ra8+ {[%clk 0:00:03]}  Kb3 {[%clk 0:00:07]} 91. Rf3+ {[%clk 0:00:02]}  Kb2 {[%clk 0:00:07]} 0-1


[Site "https://www.chess.com"]

[Event "Titled Tuesday Blitz February 22 Early 2022"]
[White "Kazancev, Valerij M"]
[Black "Redzisz, Michal"]
[WhiteFideId "4179609"]
[BlackFideId "21816107"]
[WhiteElo "2453"]
[BlackElo "1961"]
[Result "1-0"]
[Round "09"]
[TimeControl "180+1"]
[Date "2022.02.22"]
[WhiteClock "0:01:23"]
[BlackClock "0:00:01"]

1. c4 {[%clk 0:03:00]}  Nf6 {[%clk 0:02:57]} 2. Nc3 {[%clk 0:03:00]}  g6 {[%clk 0:02:58]} 3. g3 {[%clk 0:03:00]}  d5 {[%clk 0:02:57]} 4. cxd5 {[%clk 0:03:00]}  Nxd5 {[%clk 0:02:57]} 5. Bg2 {[%clk 0:03:01]}  Nxc3 {[%clk 0:02:56]} 6. bxc3 {[%clk 0:03:00]}  Bg7 {[%clk 0:02:57]} 7. h4 {[%clk 0:03:01]}  O-O {[%clk 0:02:48]} 8. h5 {[%clk 0:03:01]}  c5 {[%clk 0:02:39]} 9. hxg6 {[%clk 0:02:55]}  hxg6 {[%clk 0:02:39]} 10. Qa4 {[%clk 0:02:55]}  e6 {[%clk 0:02:15]} 11. Ba3 {[%clk 0:02:54]}  Bd7 {[%clk 0:01:57]} 12. Qh4 {[%clk 0:02:46]}  Qxh4 {[%clk 0:01:56]} 13. Rxh4 {[%clk 0:02:47]}  Bc6 {[%clk 0:01:55]} 14. Bxc6 {[%clk 0:02:45]}  Nxc6 {[%clk 0:01:55]} 15. Bxc5 {[%clk 0:02:46]}  Rfc8 {[%clk 0:01:54]} 16. Rb1 {[%clk 0:02:43]}  b6 {[%clk 0:01:54]} 17. Be3 {[%clk 0:02:37]}  Ne5 {[%clk 0:01:49]} 18. Ra4 {[%clk 0:02:35]}  Nc4 {[%clk 0:01:32]} 19. Nf3 {[%clk 0:02:32]}  Nxe3 {[%clk 0:01:32]} 20. fxe3 {[%clk 0:02:33]}  Kf8 {[%clk 0:01:30]} 21. g4 {[%clk 0:02:33]}  Ke7 {[%clk 0:01:24]} 22. e4 {[%clk 0:02:33]}  Rh8 {[%clk 0:01:20]} 23. Kf2 {[%clk 0:02:33]}  Kd6 {[%clk 0:01:08]} 24. d4 {[%clk 0:02:25]}  Rhc8 {[%clk 0:00:59]} 25. c4 {[%clk 0:02:24]}  Rc7 {[%clk 0:00:58]} 26. Ke3 {[%clk 0:02:16]}  Rac8 {[%clk 0:00:55]} 27. Kd3 {[%clk 0:02:16]}  e5 {[%clk 0:00:42]} 28. e3 {[%clk 0:02:16]}  f6 {[%clk 0:00:38]} 29. Rb5 {[%clk 0:02:02]}  g5 {[%clk 0:00:36]} 30. Rd5+ {[%clk 0:01:58]}  Ke6 {[%clk 0:00:36]} 31. dxe5 {[%clk 0:01:58]}  Rh8 {[%clk 0:00:24]} 32. exf6 {[%clk 0:01:57]}  Bxf6 {[%clk 0:00:25]} 33. e5 {[%clk 0:01:56]}  Be7 {[%clk 0:00:24]} 34. Ke4 {[%clk 0:01:45]}  Rh1 {[%clk 0:00:17]} 35. Nd4+ {[%clk 0:01:44]}  Kf7 {[%clk 0:00:17]} 36. e6+ {[%clk 0:01:40]}  Ke8 {[%clk 0:00:09]} 37. Rd7 {[%clk 0:01:35]}  Rxd7 {[%clk 0:00:05]} 38. exd7+ {[%clk 0:01:36]}  Kxd7 {[%clk 0:00:06]} 39. Rxa7+ {[%clk 0:01:36]}  Ke8 {[%clk 0:00:06]} 40. Nf5 {[%clk 0:01:35]}  Bc5 {[%clk 0:00:03]} 41. Kd5 {[%clk 0:01:33]}  Rd1+ {[%clk 0:00:03]} 42. Ke6 {[%clk 0:01:33]}  Kd8 {[%clk 0:00:03]} 43. Rg7 {[%clk 0:01:28]}  Rd2 {[%clk 0:00:02]} 44. Rxg5 {[%clk 0:01:27]}  Rxa2 {[%clk 0:00:02]} 45. Rg8+ {[%clk 0:01:26]}  Kc7 {[%clk 0:00:02]} 46. g5 {[%clk 0:01:26]}  Re2 {[%clk 0:00:01]} 47. g6 {[%clk 0:01:23]} 1-0


[Site "https://www.chess.com"]

[Event "Titled Tuesday Blitz February 22 Early 2022"]
[White "King, Alexander"]
[Black "Moroni, Luca Jr"]
[WhiteFideId "2063620"]
[BlackFideId "865834"]
[WhiteElo "2306"]
[BlackElo "2573"]
[Result "0-1"]
[Round "09"]
[TimeControl "180+1"]
[Date "2022.02.22"]
[WhiteClock "0:00:01"]
[BlackClock "0:00:04"]

1. d4 {[%clk 0:03:00]}  d6 {[%clk 0:02:59]} 2. e4 {[%clk 0:03:01]}  e5 {[%clk 0:02:59]} 3. dxe5 {[%clk 0:03:00]}  dxe5 {[%clk 0:03:00]} 4. Qxd8+ {[%clk 0:03:01]}  Kxd8 {[%clk 0:03:01]} 5. Nf3 {[%clk 0:03:00]}  f6 {[%clk 0:03:01]} 6. Rg1 {[%clk 0:03:00]}  c6 {[%clk 0:02:53]} 7. g4 {[%clk 0:02:59]}  h6 {[%clk 0:02:51]} 8. h4 {[%clk 0:02:59]}  Be6 {[%clk 0:02:49]} 9. g5 {[%clk 0:02:56]}  hxg5 {[%clk 0:02:50]} 10. hxg5 {[%clk 0:02:57]}  Nd7 {[%clk 0:02:50]} 11. Be3 {[%clk 0:02:35]}  Kc7 {[%clk 0:02:49]} 12. Nbd2 {[%clk 0:02:35]}  Rd8 {[%clk 0:02:42]} 13. Bc4 {[%clk 0:02:29]}  Bxc4 {[%clk 0:02:37]} 14. Nxc4 {[%clk 0:02:29]}  Bc5 {[%clk 0:02:35]} 15. O-O-O {[%clk 0:02:25]}  Bxe3+ {[%clk 0:02:26]} 16. Nxe3 {[%clk 0:02:26]}  Rh3 {[%clk 0:02:12]} 17. Nd2 {[%clk 0:02:08]}  Nc5 {[%clk 0:02:00]} 18. gxf6 {[%clk 0:02:02]}  gxf6 {[%clk 0:02:01]} 19. Rg7+ {[%clk 0:01:48]}  Kb8 {[%clk 0:01:51]} 20. Ndc4 {[%clk 0:01:36]}  Rxd1+ {[%clk 0:01:51]} 21. Kxd1 {[%clk 0:01:37]}  Nh6 {[%clk 0:01:49]} 22. Nd6 {[%clk 0:01:30]}  a5 {[%clk 0:01:49]} 23. Nec4 {[%clk 0:01:24]}  a4 {[%clk 0:01:16]} 24. Na5 {[%clk 0:01:07]}  Rh4 {[%clk 0:01:09]} 25. Ndxb7 {[%clk 0:00:50]}  Nxb7 {[%clk 0:01:00]} 26. Rxb7+ {[%clk 0:00:51]}  Kc8 {[%clk 0:01:00]} 27. Rh7 {[%clk 0:00:52]}  c5 {[%clk 0:00:56]} 28. Nb7 {[%clk 0:00:46]}  f5 {[%clk 0:00:32]} 29. Nxc5 {[%clk 0:00:06]}  fxe4 {[%clk 0:00:32]} 30. Ke2 {[%clk 0:00:07]}  Kd8 {[%clk 0:00:26]} 31. Ne6+ {[%clk 0:00:05]}  Ke8 {[%clk 0:00:24]} 32. Nc7+ {[%clk 0:00:04]}  Kf8 {[%clk 0:00:23]} 33. Nd5 {[%clk 0:00:05]}  Rh3 {[%clk 0:00:16]} 34. b3 {[%clk 0:00:04]}  a3 {[%clk 0:00:16]} 35. b4 {[%clk 0:00:04]}  Rh1 {[%clk 0:00:13]} 36. b5 {[%clk 0:00:03]}  Ra1 {[%clk 0:00:11]} 37. Nc3 {[%clk 0:00:02]}  Nf5 {[%clk 0:00:07]} 38. b6 {[%clk 0:00:02]}  Nd4+ {[%clk 0:00:07]} 39. Ke3 {[%clk 0:00:02]}  Re1+ {[%clk 0:00:03]} 40. Kd2 {[%clk 0:00:01]}  Nf3# {[%clk 0:00:04]} 0-1


[Site "https://www.chess.com"]

[Event "Titled Tuesday Blitz February 22 Early 2022"]
[White "Kozak, Adam"]
[Black "Gabrielian, Artur"]
[WhiteFideId "753246"]
[BlackFideId "4131002"]
[WhiteElo "2459"]
[BlackElo "2440"]
[Result "0-1"]
[Round "09"]
[TimeControl "180+1"]
[Date "2022.02.22"]
[WhiteClock "0:00:07"]
[BlackClock "0:00:19"]

1. Nf3 {[%clk 0:03:00]}  Nf6 {[%clk 0:02:59]} 2. g3 {[%clk 0:03:00]}  g6 {[%clk 0:02:59]} 3. Bg2 {[%clk 0:03:01]}  Bg7 {[%clk 0:03:00]} 4. O-O {[%clk 0:03:01]}  O-O {[%clk 0:03:00]} 5. d4 {[%clk 0:03:02]}  d5 {[%clk 0:03:01]} 6. c4 {[%clk 0:03:02]}  c6 {[%clk 0:03:01]} 7. Qb3 {[%clk 0:03:02]}  Qb6 {[%clk 0:03:00]} 8. Nc3 {[%clk 0:03:02]}  Rd8 {[%clk 0:02:59]} 9. Bd2 {[%clk 0:03:02]}  Bf5 {[%clk 0:02:59]} 10. Na4 {[%clk 0:03:02]}  Qxb3 {[%clk 0:02:53]} 11. axb3 {[%clk 0:03:03]}  Na6 {[%clk 0:02:52]} 12. Rfc1 {[%clk 0:03:03]}  Ne4 {[%clk 0:02:48]} 13. Ba5 {[%clk 0:03:01]}  Rdc8 {[%clk 0:02:46]} 14. e3 {[%clk 0:03:01]}  Nd6 {[%clk 0:02:45]} 15. Nd2 {[%clk 0:02:57]}  Be6 {[%clk 0:02:44]} 16. Nc5 {[%clk 0:02:49]}  Nxc5 {[%clk 0:02:41]} 17. dxc5 {[%clk 0:02:50]}  Ne4 {[%clk 0:02:32]} 18. Nxe4 {[%clk 0:02:00]}  dxe4 {[%clk 0:02:31]} 19. Bc3 {[%clk 0:02:01]}  f5 {[%clk 0:02:31]} 20. b4 {[%clk 0:01:59]}  Bxc3 {[%clk 0:02:26]} 21. Rxc3 {[%clk 0:01:59]}  Rd8 {[%clk 0:02:20]} 22. b5 {[%clk 0:01:52]}  Rd2 {[%clk 0:02:15]} 23. b4 {[%clk 0:01:38]}  Rb2 {[%clk 0:02:09]} 24. b6 {[%clk 0:01:35]}  a6 {[%clk 0:01:45]} 25. b5 {[%clk 0:01:34]}  cxb5 {[%clk 0:01:42]} 26. cxb5 {[%clk 0:01:34]}  Rxb5 {[%clk 0:01:40]} 27. Bf1 {[%clk 0:01:34]}  Rb2 {[%clk 0:01:40]} 28. Rd1 {[%clk 0:01:15]}  a5 {[%clk 0:01:34]} 29. Ra1 {[%clk 0:01:10]}  a4 {[%clk 0:01:15]} 30. Raa3 {[%clk 0:01:09]}  Kg7 {[%clk 0:00:57]} 31. Bc4 {[%clk 0:01:02]}  Kf6 {[%clk 0:00:54]} 32. Kg2 {[%clk 0:00:33]}  Rd8 {[%clk 0:00:47]} 33. Bxe6 {[%clk 0:00:20]}  Kxe6 {[%clk 0:00:46]} 34. c6 {[%clk 0:00:21]}  bxc6 {[%clk 0:00:46]} 35. Rxc6+ {[%clk 0:00:20]}  Kf7 {[%clk 0:00:46]} 36. Rxa4 {[%clk 0:00:17]}  Rdd2 {[%clk 0:00:46]} 37. b7 {[%clk 0:00:09]}  Rxf2+ {[%clk 0:00:35]} 38. Kg1 {[%clk 0:00:09]}  Rg2+ {[%clk 0:00:34]} 39. Kf1 {[%clk 0:00:08]}  Rxh2 {[%clk 0:00:33]} 40. Kg1 {[%clk 0:00:08]}  Rhg2+ {[%clk 0:00:32]} 41. Kf1 {[%clk 0:00:09]}  Rh2 {[%clk 0:00:29]} 42. Kg1 {[%clk 0:00:09]}  Rhd2 {[%clk 0:00:29]} 43. Rc1 {[%clk 0:00:07]}  Rxb7 {[%clk 0:00:28]} 44. g4 {[%clk 0:00:08]}  Rbb2 {[%clk 0:00:27]} 45. gxf5 {[%clk 0:00:08]}  gxf5 {[%clk 0:00:28]} 46. Ra5 {[%clk 0:00:09]}  e6 {[%clk 0:00:28]} 47. Ra7+ {[%clk 0:00:08]}  Kg6 {[%clk 0:00:27]} 48. Kh1 {[%clk 0:00:08]}  Rh2+ {[%clk 0:00:27]} 49. Kg1 {[%clk 0:00:08]}  Rbg2+ {[%clk 0:00:27]} 50. Kf1 {[%clk 0:00:09]}  Rh1+ {[%clk 0:00:27]} 51. Kxg2 {[%clk 0:00:10]}  Rxc1 {[%clk 0:00:27]} 52. Re7 {[%clk 0:00:10]}  Rc6 {[%clk 0:00:19]} 53. Kg3 {[%clk 0:00:10]}  h6 {[%clk 0:00:20]} 54. Kh4 {[%clk 0:00:08]}  Kf6 {[%clk 0:00:19]} 55. Rh7 {[%clk 0:00:07]}  Rc3 {[%clk 0:00:19]} 56. Rc7 {[%clk 0:00:07]}  Rxc7 {[%clk 0:00:19]} 0-1


[Site "https://www.chess.com"]